fUST/lending_fUST_20240415
["ID","MTS","AMOUNT","RATE_DAILY","PERIOD"]
[322621435,1713128963788,-500.0,0.00031925,2]
[322621436,1713128963808,-500.0,0.0003198,2]
[322621437,1713128963829,-500.0,0.00032035,2]
[322621438,1713128963852,-1613.0,0.00032037,2]
[322621439,1713128963873,-169.24847147,0.0003209,2]
[322621440,1713128963893,-414.78747816,0.00032471,4]
[322621441,1713128963917,-76.82426122,0.00033104,6]
[322621442,1713128967084,-164.0,0.00032037,2]
[322621443,1713128967109,-403.50000253,0.00033104,6]
[322621444,1713128967129,-181.0,0.00033885,2]
[322621445,1713128967151,-691.90181702,0.0003422,2]
[322621446,1713128967172,-460.0,0.00034848,2]
[322621447,1713128967192,-164.0,0.00035037,2]
[322621448,1713128967491,206.48952235,0.00031876,2]
[322621449,1713128969781,1185.20217984,0.00034847,4]
[322621450,1713128972537,206.48952235,0.00032787,2]
[322621451,1713128973064,154.82968734,0.00034847,4]
[322621452,1713128977500,206.48952235,0.00033698,2]
[322621453,1713128982517,206.48952235,0.00034609,2]
[322621498,1713129032179,-206.48952235,0.0003552,2]
[322621500,1713129032189,-235.259781,0.00035616,120]
[322621502,1713129032199,-165.0,0.0003589,2]
[322621504,1713129032208,-154.82968734,0.00035997,4]
[322621506,1713129032217,-323.82288502,0.00035998,4]
[322621508,1713129032226,-5816.73849461,0.00035998,4]
[322621510,1713129032238,-1670.86493937,0.00035998,4]
[322621512,1713129032247,-9292.84310444,0.00035999,4]
[322621514,1713129032257,-9292.84310444,0.00035999,4]
[322621516,1713129032266,-9292.84310444,0.00035999,4]
[322621518,1713129032276,-165.0,0.00036,2]
[322621520,1713129032285,-24900.0,0.00036006,2]
[322621522,1713129032294,-480.32426375,0.00036142,7]
[322621524,1713129032303,-3501.65350404,0.00036428,4]
[322621526,1713129032312,-431.85452432,0.00036429,4]
[322621528,1713129032321,-206.48952235,0.0003643,2]
[322621530,1713129032330,-155.04640555,0.00036434,4]
[322621533,1713129032476,-925.5318754,0.00036436,4]
[322621535,1713129032486,-621.06632587,0.00037267,2]
[322621536,1713129032495,-206.48952235,0.00037341,2]
[322621537,1713129032505,-165.0,0.00037397,2]
[322621538,1713129032515,-306.0,0.00037441,2]
[322621539,1713129032524,-501.98208771,0.0003787,2]
[322621540,1713129032534,-11372.08376129,0.0003797,4]
[322621541,1713129032544,-437.5162983,0.00038251,2]
[322621542,1713129032554,-205.99864379,0.00038251,2]
[322621544,1713129032563,-206.48952235,0.00038252,2]
[322621545,1713129032574,-691.90181702,0.00038256,2]
[322621547,1713129032584,-150.0,0.000383,2]
[322621548,1713129032595,-328.0,0.00038348,2]
[322621549,1713129032605,-470.12905988,0.00038348,4]
[322621550,1713129032616,-2580.60345688,0.00038348,4]
[322621551,1713129032626,-181.00492583,0.00038348,4]
[322621552,1713129032636,-190.68522369,0.00038348,15]
[322621553,1713129032646,-203.67668519,0.00038349,4]
[322621554,1713129032655,-422.99731209,0.00038349,4]
[322621555,1713129032666,-184.05387621,0.00038349,4]
[322621556,1713129032675,-360.96525241,0.00038349,4]
[322621557,1713129032684,-154.98448607,0.00038349,4]
[322621558,1713129032693,-538.34084385,0.00038349,4]
[322621559,1713129032703,-418.29069357,0.00038349,4]
[322621560,1713129032713,-155.03088238,0.00038349,4]
[322621561,1713129032722,-627.61549492,0.00038349,4]
[322621562,1713129032731,-968.73176277,0.00038349,4]
[322621563,1713129032741,-188.40288794,0.00038349,4]
[322621564,1713129032750,-796.46091487,0.00038349,4]
[322621565,1713129032759,-886.93560667,0.00038349,4]
[322621566,1713129032769,-524.79843426,0.00038349,4]
[322621567,1713129032779,-1307.7872747,0.00038349,4]
[322621568,1713129032788,-155.03088238,0.00038349,4]
[322621569,1713129032799,-277.10572932,0.00038349,4]
[322621570,1713129032808,-157.30655341,0.00038349,4]
[322621571,1713129032818,-1930.96131375,0.00038349,4]
[322621572,1713129032828,-1364.03718768,0.00038349,4]
[322621573,1713129032840,-757.56790495,0.00038349,4]
[322621574,1713129032850,-282.38723497,0.00038349,4]
[322621575,1713129032859,-500.0,0.00038349,2]
[322621576,1713129032869,-193.04527151,0.00038349,4]
[322621577,1713129032878,-601.54654355,0.00038349,4]
[322621578,1713129032887,-860.87543576,0.00038349,120]
[322621579,1713129032899,-1904.90579192,0.00038349,120]
[322621580,1713129032908,-473.31258162,0.00038349,4]
[322621581,1713129032919,-4443.64181941,0.00038349,4]
[322621582,1713129032929,-1486.09779733,0.00038349,4]
[322621583,1713129032938,-848.4989441,0.00038349,4]
[322621584,1713129032948,-1853.93223461,0.00038349,4]
[322621585,1713129032957,-155.03088238,0.00038349,4]
[322621586,1713129032967,-320.89589595,0.00038349,4]
[322621587,1713129032976,-242.80412269,0.00038349,4]
[322621588,1713129032986,-155.13922912,0.00038349,4]
[322621589,1713129032995,-559.10249529,0.00038349,4]
[322621590,1713129033005,-596.8187497,0.0003835,2]
[322621591,1713129033014,-2980.84957671,0.0003835,30]
[322621631,1713129038189,-1259.18180835,0.00035519,4]
[322621634,1713129038198,-2815.4632892,0.00035889,4]
[322621636,1713129038207,-9320.58133185,0.0003835,30]
[322621638,1713129038217,-85730.40432754,0.00038351,2]
[322621640,1713129038226,-156.67063917,0.00038352,4]
[322621642,1713129038235,-3738.27761337,0.00038352,4]
[322621644,1713129038245,-154.95351395,0.00038352,4]
[322621646,1713129038255,-285.07894983,0.00038352,4]
[322621649,1713129038264,-1965.39904468,0.00038352,4]
[322621651,1713129038273,-158.62437047,0.00038352,4]
[322621653,1713129038282,-160.52785731,0.00038352,4]
[322621655,1713129038291,-155.1560317,0.00038352,4]
[322621657,1713129038300,-230.38837827,0.00038352,2]
[322621659,1713129038310,-309.65940566,0.00038352,4]
[322621661,1713129038320,-202.82766639,0.00038352,4]
[322621662,1713129038330,-154.99086264,0.00038352,4]
[322621665,1713129038339,-270.20221594,0.00038352,4]
[322621667,1713129038349,-2617.86637994,0.00038352,4]
[322621668,1713129038358,-9426.2634274,0.00038352,7]
[322621670,1713129038367,-687.6463722,0.00038352,4]
[322621671,1713129038377,-154.8915759,0.00038352,4]
[322621672,1713129038386,-156.51780133,0.00038352,4]
[322621673,1713129038395,-300.03776698,0.00038352,4]
[322621674,1713129038405,-400.0,0.00038352,2]
[322621675,1713129038417,-300.43979342,0.00038352,4]
[322621676,1713129038425,-155.06001921,0.00038352,4]
[322621677,1713129038435,-187.75656943,0.00038352,4]
[322621678,1713129038444,-304.02078287,0.00038352,2]
[322621679,1713129038454,-230.84972227,0.00038352,4]
[322621680,1713129038463,-193.22053762,0.00038352,4]
[322621681,1713129038472,-1671.38044396,0.00038352,4]
[322621682,1713129038481,-154.9690062,0.00038352,4]
[322621683,1713129038491,-155.21602154,0.00038352,4]
[322621684,1713129038500,-155.02125076,0.00038352,4]
[322621685,1713129038509,-167.21553136,0.00038352,4]
[322621686,1713129038518,-171.77460806,0.00038352,4]
[322621687,1713129038527,-762.4460035,0.00038352,4]
[322621688,1713129038536,-160.44768678,0.00038352,4]
[322621689,1713129038545,-301.1507237,0.00038352,4]
[322621690,1713129038554,-3293.28998897,0.00038352,4]
[322621691,1713129038563,-14818.75726062,0.00038353,5]
[322621692,1713129038572,-6857.88352877,0.00038353,4]
[322621693,1713129038581,-326.62746288,0.00038353,4]
[322621694,1713129038590,-188.75485878,0.00038353,2]
[322621695,1713129038601,-151.0,0.00038353,2]
[322621696,1713129038610,-151.0,0.00038353,2]
[322621697,1713129038619,-151.0,0.00038353,2]
[322621698,1713129038628,-500.0,0.00038353,15]
[322621699,1713129038637,-466.66683023,0.00038353,15]
[322621700,1713129038646,-500.0,0.00038353,15]
[322621701,1713129038655,-500.0,0.00038353,15]
[322621702,1713129038665,-500.0,0.00038353,15]
[322621704,1713129038674,-500.0,0.00038353,15]
[322621705,1713129038683,-500.0,0.00038353,15]
[322621706,1713129038692,-500.0,0.00038353,15]
[322621708,1713129038701,-500.0,0.00038353,15]
[322621710,1713129038710,-500.0,0.00038353,15]
[322621711,1713129038720,-500.0,0.00038353,15]
[322621713,1713129038730,-188.9888965,0.00038353,15]
[322621715,1713129038739,-500.0,0.00038353,15]
[322621718,1713129038748,-500.0,0.00038353,15]
[322621720,1713129038758,-500.0,0.00038353,15]
[322621721,1713129038767,-500.0,0.00038353,15]
[322621724,1713129038777,-500.0,0.00038353,15]
[322621725,1713129038786,-223.52604728,0.00038353,15]
[322621728,1713129038795,-500.0,0.00038353,15]
[322621729,1713129038804,-500.0,0.00038353,15]
[322621731,1713129038813,-582.32964405,0.00038353,15]
[322621733,1713129038822,-500.0,0.00038353,15]
[322621735,1713129038831,-500.0,0.00038353,15]
[322621737,1713129038840,-500.0,0.00038353,15]
[322621739,1713129038849,-438.51168124,0.00038353,15]
[322621742,1713129038858,-500.0,0.00038353,15]
[322621743,1713129038867,-500.0,0.00038353,15]
[322621746,1713129038876,-500.0,0.00038353,15]
[322621747,1713129038886,-500.0,0.00038353,15]
[322621750,1713129038895,-500.0,0.00038353,15]
[322621751,1713129038904,-500.0,0.00038353,15]
[322621753,1713129038915,-500.0,0.00038353,15]
[322621756,1713129038924,-500.0,0.00038353,15]
[322621758,1713129038933,-500.0,0.00038353,15]
[322621760,1713129038944,-500.0,0.00038353,15]
[322621762,1713129038953,-500.0,0.00038353,15]
[322621764,1713129038962,-500.0,0.00038353,15]
[322621766,1713129038971,-500.0,0.00038353,15]
[322621768,1713129038981,-500.0,0.00038353,15]
[322621770,1713129038990,-500.0,0.00038353,15]
[322621772,1713129038999,-159.29311636,0.00038353,15]
[322621774,1713129039008,-500.0,0.00038353,15]
[322621776,1713129039016,-500.0,0.00038353,15]
[322621778,1713129039025,-500.0,0.00038353,15]
[322621780,1713129039034,-399.99999999,0.00038353,15]
[322621782,1713129039043,-154.95351395,0.00038354,4]
[322621784,1713129039052,-181.18098361,0.00038354,4]
[322621786,1713129039061,-154.95351395,0.00038354,4]
[322621788,1713129039069,-185.73445743,0.00038354,4]
[322621790,1713129039080,-154.95351395,0.00038354,4]
[322621792,1713129039089,-308.06997136,0.00038354,4]
[322621794,1713129039101,-407.97119397,0.00038354,4]
[322621796,1713129039110,-304.0246345,0.00038354,4]
[322621798,1713129039119,-22761.07715403,0.00038354,4]
[322621800,1713129039128,-59022.10944715,0.00038354,4]
[322621802,1713129039139,-1494.36779976,0.00038354,4]
[322621804,1713129039147,-151.0,0.00038354,2]
[322621806,1713129039156,-151.0,0.00038354,2]
[322621808,1713129039167,-151.0,0.00038354,2]
[322621809,1713129039177,-151.0,0.00038354,2]
[322621810,1713129039186,-153.074142,0.00038354,2]
[322621811,1713129039195,-154.953514,0.00038354,2]
[322621812,1713129039205,-151.0,0.00038354,2]
[322621813,1713129039214,-151.0,0.00038354,2]
[322621814,1713129039223,-3690.836947,0.00038354,2]
[322621815,1713129039232,-3690.836947,0.00038354,2]
[322621816,1713129039241,-151.0,0.00038354,2]
[322621817,1713129039251,-256.216173,0.00038354,2]
[322621818,1713129039261,-256.216173,0.00038354,2]
[322621819,1713129039270,-563.18202203,0.00038355,4]
[322621820,1713129039279,-3291.5,0.00038355,2]
[322621821,1713129039288,-3291.5,0.00038355,2]
[322621822,1713129039298,-3291.5,0.00038355,2]
[322621823,1713129039307,-3291.5,0.00038355,2]
[322621824,1713129039316,-3291.5,0.00038355,2]
[322621825,1713129039325,-3291.5,0.00038355,2]
[322621826,1713129039334,-3291.5,0.00038355,2]
[322621827,1713129039343,-3291.5,0.00038355,2]
[322621828,1713129039352,-3291.5,0.00038355,2]
[322621829,1713129039361,-7009.31775895,0.00038356,4]
[322621830,1713129039371,-649.92327912,0.00038356,4]
[322621831,1713129039380,-192.29038729,0.00038356,7]
[322621832,1713129039390,-500.0,0.00038356,7]
[322621833,1713129039399,-500.0,0.00038356,7]
[322621834,1713129039408,-500.0,0.00038356,7]
[322621835,1713129039421,-546.05,0.00038356,7]
[322621836,1713129039431,-500.0,0.00038356,7]
[322621837,1713129039441,-218.86964851,0.00038356,7]
[322621838,1713129039451,-500.0,0.00038356,7]
[322621839,1713129039461,-502.81429633,0.00038356,7]
[322621840,1713129039472,-511.17,0.00038356,7]
[322621841,1713129039482,-500.0,0.00038356,7]
[322621842,1713129039493,-500.0,0.00038356,7]
[322621843,1713129039502,-500.0,0.00038356,7]
[322621844,1713129039514,-500.0,0.00038356,7]
[322621845,1713129039524,-500.0,0.00038356,7]
[322621846,1713129039533,-500.0,0.00038356,7]
[322621847,1713129039544,-517.79576344,0.00038356,7]
[322621848,1713129039555,-500.0,0.00038356,7]
[322621850,1713129039566,-500.0,0.00038356,7]
[322621851,1713129039576,-500.0,0.00038356,7]
[322621852,1713129039586,-500.0,0.00038356,7]
[322621853,1713129039596,-721.15,0.00038356,7]
[322621854,1713129039607,-500.0,0.00038356,7]
[322621855,1713129039616,-500.0,0.00038356,7]
[322621856,1713129039626,-500.0,0.00038356,7]
[322621857,1713129039638,-500.0,0.00038356,7]
[322621858,1713129039649,-501.29234121,0.00038356,7]
[322621859,1713129039659,-500.0,0.00038356,7]
[322621860,1713129039672,-500.62077655,0.00038356,2]
[322621861,1713129039683,-500.0,0.00038356,7]
[322621862,1713129039693,-500.0,0.00038356,7]
[322621863,1713129039703,-500.0,0.00038356,7]
[322621864,1713129039713,-500.0,0.00038356,7]
[322621865,1713129039724,-500.0,0.00038356,7]
[322621866,1713129039734,-500.0,0.00038356,7]
[322621867,1713129039744,-500.0,0.00038356,7]
[322621868,1713129039754,-522.02119539,0.00038356,7]
[322621869,1713129039764,-500.0,0.00038356,7]
[322621870,1713129039773,-500.0,0.00038356,7]
[322621871,1713129039784,-527.46487422,0.00038356,7]
[322621872,1713129039795,-500.0,0.00038356,7]
[322621873,1713129039806,-200.5177822,0.00038356,7]
[322621874,1713129039817,-500.0,0.00038356,7]
[322621875,1713129039827,-502.19453378,0.00038356,7]
[322621876,1713129039838,-500.0,0.00038356,7]
[322621877,1713129039850,-500.0,0.00038356,7]
[322621878,1713129039860,-500.0,0.00038356,2]
[322621879,1713129039871,-258.36897037,0.00038356,7]
[322621880,1713129039882,-500.0,0.00038356,7]
[322621881,1713129039892,-178.28,0.00038356,7]
[322621882,1713129039901,-500.0,0.00038356,7]
[322621883,1713129039910,-278.28463039,0.00038356,7]
[322621884,1713129039922,-500.0,0.00038356,7]
[322621885,1713129039931,-151.0,0.00038356,2]
[322621886,1713129039940,-151.0,0.00038356,2]
[322621887,1713129039949,-151.0,0.00038356,2]
[322621888,1713129039958,-151.0,0.00038356,2]
[322621889,1713129039967,-500.0,0.00038356,7]
[322621892,1713129039977,-500.0,0.00038356,7]
[322621893,1713129039986,-500.0,0.00038356,7]
[322621895,1713129039996,-500.0,0.00038356,7]
[322621898,1713129040006,-500.0,0.00038356,7]
[322621901,1713129040015,-500.0,0.00038356,7]
[322621904,1713129040025,-151.0,0.00038356,2]
[322621907,1713129040034,-151.0,0.00038356,2]
[322621909,1713129040044,-219.439793,0.00038356,2]
[322621911,1713129040052,-500.0,0.00038356,7]
[322621913,1713129040061,-500.0,0.00038356,7]
[322621915,1713129040070,-443.016766,0.00038356,2]
[322621917,1713129040083,-500.0,0.00038356,7]
[322621919,1713129040093,-443.016766,0.00038356,2]
[322621921,1713129040102,-443.016766,0.00038356,2]
[322621923,1713129040112,-443.016766,0.00038356,2]
[322621925,1713129040123,-443.016766,0.00038356,2]
[322621927,1713129040132,-500.0,0.00038356,7]
[322621929,1713129040142,-443.016766,0.00038356,2]
[322621931,1713129040151,-443.016766,0.00038356,2]
[322621933,1713129040161,-443.016766,0.00038356,2]
[322621935,1713129040176,-500.0,0.00038356,7]
[322621937,1713129040186,-500.0,0.00038356,7]
[322621939,1713129040195,-500.0,0.00038356,7]
[322621941,1713129040205,-500.0,0.00038356,7]
[322621943,1713129040215,-1000.0,0.00038356,2]
[322621945,1713129040225,-151.0,0.00038356,2]
[322621947,1713129040234,-151.0,0.00038356,2]
[322621949,1713129040244,-151.0,0.00038356,2]
[322621951,1713129040254,-243.79794,0.00038356,2]
[322621953,1713129040264,-500.0,0.00038356,7]
[322621964,1713129040402,-151.0,0.00038356,2]
[322621966,1713129040413,-151.0,0.00038356,2]
[322621968,1713129040427,-444.3850364,0.00038356,7]
[322621970,1713129040436,-370.34944153,0.00038356,7]
[322621972,1713129040456,-781.81,0.00038356,7]
[322621974,1713129040466,-500.0,0.00038356,7]
[322621976,1713129040476,-500.0,0.00038356,7]
[322621978,1713129040486,-271.12152669,0.00038356,7]
[322621981,1713129040497,-500.0,0.00038356,7]
[322621983,1713129040508,-500.0,0.00038356,7]
[322621985,1713129040518,-553.39,0.00038356,7]
[322621987,1713129040527,-500.0,0.00038356,7]
[322621989,1713129040538,-500.0,0.00038356,7]
[322621991,1713129040549,-500.0,0.00038356,7]
[322621993,1713129040559,-500.92058028,0.00038356,7]
[322621995,1713129040569,-504.16661416,0.00038356,7]
[322621997,1713129040580,-500.0,0.00038356,7]
[322621999,1713129040590,-164.72271127,0.00038356,7]
[322622001,1713129040601,-1505.33,0.00038356,7]
[322622003,1713129040611,-500.0,0.00038356,7]
[322622006,1713129040624,-511.27,0.00038356,7]
[322622008,1713129040634,-500.0,0.00038356,7]
[322622010,1713129040644,-500.0,0.00038356,7]
[322622012,1713129040655,-500.0,0.00038356,7]
[322622014,1713129040666,-500.0,0.00038356,7]
[322622016,1713129040676,-500.0,0.00038356,7]
[322622018,1713129040685,-500.0,0.00038356,7]
[322622020,1713129040696,-500.0,0.00038356,7]
[322622022,1713129040706,-500.0,0.00038356,7]
[322622024,1713129040715,-368.83977831,0.00038356,7]
[322622026,1713129040726,-500.0,0.00038356,7]
[322622028,1713129040735,-504.03,0.00038356,7]
[322622030,1713129040746,-500.0,0.00038356,7]
[322622032,1713129040756,-500.0,0.00038356,7]
[322622034,1713129040766,-500.0,0.00038356,7]
[322622036,1713129040776,-500.0,0.00038356,7]
[322622038,1713129040785,-500.0,0.00038356,7]
[322622040,1713129040795,-500.0,0.00038356,7]
[322622042,1713129040804,-500.0,0.00038356,7]
[322622044,1713129040813,-500.0,0.00038356,7]
[322622046,1713129040823,-264.878396,0.00038356,2]
[322622047,1713129040832,-500.0,0.00038356,7]
[322622049,1713129040841,-1731.24,0.00038356,7]
[322622050,1713129040850,-500.0,0.00038356,7]
[322622052,1713129040859,-707.25,0.00038356,7]
[322622054,1713129040869,-500.0,0.00038356,7]
[322622056,1713129040878,-4569.16,0.00038356,7]
[322622058,1713129040888,-500.0,0.00038356,7]
[322622059,1713129040897,-500.0,0.00038356,10]
[322622061,1713129040906,-500.0,0.00038356,10]
[322622063,1713129040916,-500.0,0.00038356,10]
[322622065,1713129040925,-500.0,0.00038356,10]
[322622067,1713129040935,-500.0,0.00038356,10]
[322622069,1713129040945,-500.0,0.00038356,10]
[322622071,1713129040955,-500.0,0.00038356,10]
[322622073,1713129040965,-500.0,0.00038356,10]
[322622075,1713129040974,-500.0,0.00038356,10]
[322622077,1713129040985,-500.0,0.00038356,7]
[322622080,1713129040995,-500.0,0.00038356,10]
[322622083,1713129041004,-500.0,0.00038356,10]
[322622085,1713129041014,-329.86833546,0.00038356,10]
[322622087,1713129041024,-500.0,0.00038356,7]
[322622089,1713129041034,-151.0,0.00038356,2]
[322622091,1713129041043,-151.0,0.00038356,2]
[322622093,1713129041052,-500.0,0.00038356,7]
[322622095,1713129041061,-151.0,0.00038356,2]
[322622097,1713129041070,-151.0,0.00038356,2]
[322622099,1713129041080,-151.0,0.00038356,2]
[322622100,1713129041089,-500.0,0.00038356,7]
[322622102,1713129041103,-151.0,0.00038356,2]
[322622105,1713129041113,-151.0,0.00038356,2]
[322622107,1713129041122,-151.0,0.00038356,2]
[322622110,1713129041131,-151.0,0.00038356,2]
[322622113,1713129041141,-151.0,0.00038356,2]
[322622115,1713129041151,-500.0,0.00038356,7]
[322622118,1713129041159,-500.0,0.00038356,7]
[322622121,1713129041171,-500.0,0.00038356,7]
[322622123,1713129041180,-500.0,0.00038356,7]
[322622125,1713129041189,-180.12298975,0.00038356,7]
[322622127,1713129041198,-500.0,0.00038356,7]
[322622129,1713129041207,-500.0,0.00038356,7]
[322622131,1713129041216,-500.0,0.00038356,7]
[322622133,1713129041226,-981.33,0.00038356,7]
[322622134,1713129041234,-500.0,0.00038356,7]
[322622136,1713129041243,-500.0,0.00038356,7]
[322622138,1713129041253,-151.0,0.00038356,2]
[322622140,1713129041263,-151.0,0.00038356,2]
[322622142,1713129041273,-151.0,0.00038356,2]
[322622144,1713129041283,-151.0,0.00038356,2]
[322622146,1713129041293,-151.0,0.00038356,2]
[322622148,1713129041303,-621.48,0.00038356,7]
[322622150,1713129041313,-500.0,0.00038356,7]
[322622152,1713129041321,-563.87,0.00038356,7]
[322622153,1713129041331,-500.0,0.00038356,7]
[322622155,1713129041340,-6252.78,0.00038356,7]
[322622157,1713129041349,-21459.6,0.00038356,7]
[322622159,1713129041358,-532.34576544,0.00038356,7]
[322622161,1713129041367,-580.11419855,0.00038356,7]
[322622163,1713129041376,-500.0,0.00038356,7]
[322622165,1713129041386,-566.31201203,0.00038356,7]
[322622167,1713129041395,-2024.09,0.00038356,7]
[322622169,1713129041404,-500.0,0.00038356,7]
[322622171,1713129041413,-500.0,0.00038356,7]
[322622173,1713129041423,-500.0,0.00038356,7]
[322622175,1713129041432,-500.0,0.00038356,7]
[322622176,1713129041442,-820.4,0.00038356,7]
[322622177,1713129041451,-500.0,0.00038356,7]
[322622178,1713129041462,-500.0,0.00038356,7]
[322622179,1713129041472,-246.51846652,0.00038356,7]
[322622180,1713129041482,-618.06684931,0.00038356,7]
[322622181,1713129041492,-500.0,0.00038356,7]
[322622183,1713129041501,-4076.45,0.00038356,7]
[322622185,1713129041510,-500.0,0.00038356,7]
[322622187,1713129041519,-181.97753445,0.00038356,7]
[322622189,1713129041528,-15433.29,0.00038356,7]
[322622191,1713129041540,-1939.47,0.00038356,7]
[322622193,1713129041549,-500.0,0.00038356,7]
[322622195,1713129041557,-497.48,0.00038356,7]
[322622197,1713129041566,-500.0,0.00038356,7]
[322622199,1713129041574,-2214.66,0.00038356,7]
[322622200,1713129041584,-500.0,0.00038356,7]
[322622202,1713129041592,-2596.81,0.00038356,7]
[322622204,1713129041601,-1527.74,0.00038356,7]
[322622206,1713129041610,-540.74,0.00038356,7]
[322622208,1713129041619,-347.42659579,0.00038356,7]
[322622210,1713129041627,-500.0,0.00038356,7]
[322622211,1713129041636,-857.73,0.00038356,7]
[322622213,1713129041645,-500.0,0.00038356,7]
[322622215,1713129041653,-3551.97,0.00038356,7]
[322622217,1713129041662,-607.74,0.00038356,7]
[322622219,1713129041672,-774.22,0.00038356,7]
[322622221,1713129041681,-1509.79,0.00038356,7]
[322622223,1713129041690,-500.0,0.00038356,7]
[322622225,1713129041700,-500.0,0.00038356,7]
[322622226,1713129041708,-633.89,0.00038356,7]
[322622228,1713129041717,-623.91599245,0.00038356,7]
[322622230,1713129041726,-500.0,0.00038356,7]
[322622232,1713129041736,-500.0,0.00038356,7]
[322622234,1713129041745,-515.04,0.00038356,7]
[322622236,1713129041755,-500.0,0.00038356,7]
[322622238,1713129041764,-500.0,0.00038356,7]
[322622240,1713129041773,-500.0,0.00038356,7]
[322622242,1713129041782,-1602.7,0.00038356,7]
[322622244,1713129041791,-551.02,0.00038356,7]
[322622246,1713129041801,-500.0,0.00038356,7]
[322622247,1713129041811,-500.0,0.00038356,7]
[322622249,1713129041820,-500.0,0.00038356,7]
[322622251,1713129041830,-461.04376869,0.00038356,7]
[322622253,1713129041840,-452.15799492,0.00038356,7]
[322622255,1713129041849,-500.0,0.00038356,7]
[322622257,1713129041858,-500.0,0.00038356,7]
[322622259,1713129041867,-500.0,0.00038356,7]
[322622261,1713129041876,-529.74,0.00038356,7]
[322622262,1713129041885,-2397.22,0.00038356,7]
[322622264,1713129041894,-853.51,0.00038356,7]
[322622266,1713129041904,-500.0,0.00038356,7]
[322622268,1713129041913,-500.0,0.00038356,7]
[322622270,1713129041924,-160.328021,0.00038356,2]
[322622272,1713129041934,-500.0,0.00038356,7]
[322622274,1713129041943,-986.26,0.00038356,7]
[322622276,1713129041953,-380.5566609,0.00038356,7]
[322622278,1713129041964,-989.7,0.00038356,7]
[322622280,1713129041973,-584.74709342,0.00038356,7]
[322622282,1713129041983,-500.0,0.00038356,7]
[322622284,1713129041992,-500.0,0.00038356,7]
[322622285,1713129042001,-1885.05,0.00038356,7]
[322622287,1713129042010,-500.0,0.00038356,7]
[322622289,1713129042019,-3690.836947,0.00038356,2]
[322622291,1713129042029,-3690.836947,0.00038356,2]
[322622293,1713129042038,-3690.836947,0.00038356,2]
[322622295,1713129042047,-3690.836947,0.00038356,2]
[322622297,1713129042056,-3690.836947,0.00038356,2]
[322622299,1713129042065,-500.0,0.00038356,7]
[322622301,1713129042074,-1087.8308668,0.00038356,2]
[322622307,1713129042128,-1365.38829114,0.00038356,2]
[322622331,1713129043312,-1237.61778906,0.00038356,2]
[322622332,1713129043322,-3690.836947,0.00038356,2]
[322622333,1713129043332,-3690.836947,0.00038356,2]
[322622334,1713129043341,-3690.836947,0.00038356,2]
[322622335,1713129043350,-3690.836947,0.00038356,2]
[322622336,1713129043360,-32813.10495327,0.00038356,7]
[322622361,1713129065127,2617.86637694,0.00021063,2]
[322622362,1713129070836,924.03970052,0.00031148,4]
[322622363,1713129086531,156.87945876,0.00028766,2]
[322624251,1713129711417,872.624964,0.00020056,2]
[322624252,1713129774699,397.53500226,0.00020948,2]
[322624253,1713129795805,523.06438682,0.0002105,4]
[322624254,1713129840554,173.755908,0.00019765,2]
[322624255,1713129865149,2329.32263511,0.00020936,2]
[322624256,1713129884128,2462.343037,0.00020034,2]
[322624257,1713129948951,187.62122518,0.0002092,2]
[322624258,1713129976800,250.0,0.00020019,2]